bitfinex/quotes_ETHUSD_20220113
["timestamp","ask_amount","ask_price","bid_price","bid_amount"]
[1642049802548,0.00113684,3340.8,3340.5,19.0366076]
[1642049802749,0.00113684,3340.8,3340.5,1.4966076]
[1642049806606,0.00113684,3340.8,3340.4,18.7508]
[1642049806846,0.00113684,3340.8,3340.4,19.49912]
[1642049807852,0.00113684,3340.8,3340.5,0.1197]
[1642049811393,2.56947678,3340.8,3340.3,4.16322972]
[1642049814751,0.00113684,3340.8,3340.3,4.16322972]
[1642049815154,0.00113684,3340.8,3340.3,4.91156972]
[1642049816356,0.00113684,3340.8,3340.3,4.16322972]
[1642049816559,0.00113684,3340.8,3340.3,4.91155942]
[1642049817357,0.00113684,3340.8,3340.3,5.65988942]
[1642049818015,0.00113684,3340.8,3340.4,1.4964758]
[1642049818220,0.00113684,3340.8,3340.5,0.7482246]
[1642049818417,0.00113684,3340.8,3340.6,0.1197]
[1642049819416,2.56833994,3340.9,3340.6,0.1197]
[1642049819818,0.00113684,3340.8,3340.6,0.1197]
[1642049820020,0.00113684,3340.8,3340.5,2.3644546]
[1642049820219,2.57175048,3341.2,3340.5,2.3644546]
[1642049820423,2.57175048,3341.2,3340.7,0.7482532]
[1642049820622,0.00284211,3341.1,3340.7,0.7482532]
[1642049821021,0.00227369,3341.0,3340.7,0.7482532]
[1642049821422,0.00170527,3340.9,3340.7,0.7482532]
[1642049821856,0.00284211,3341.1,3340.7,0.7482532]
[1642049822254,0.00227369,3341.0,3340.7,0.7482532]
[1642049822657,0.00170527,3340.9,3340.7,0.7482532]
[1642049823057,0.00284211,3341.1,3340.7,0.7482532]
[1642049823457,0.00227369,3341.0,3340.7,0.7482532]
[1642049823862,0.00170527,3340.9,3340.7,0.7482532]
[1642049824258,0.00284211,3341.1,3340.7,0.7482532]
[1642049824758,0.00227369,3341.0,3340.7,0.7482532]
[1642049825159,0.00170527,3340.9,3340.7,0.7482532]
[1642049825600,0.00284211,3341.1,3340.7,0.7482532]
[1642049825805,0.00284211,3341.1,3341.0,1.54517052]
[1642049826004,2.68803994,3341.2,3341.0,2.83766774]
[1642049826703,2.56833994,3341.1,3341.0,2.83766774]
[1642049831153,2.56833994,3341.1,3341.0,5.83766774]
[1642049877459,5.59186009,3341.1,3341.0,4.29249722]
[1642049877858,5.89186009,3341.1,3341.0,4.29249722]
[1642049878119,5.89186009,3341.1,3341.0,3.0]
[1642049878120,6.31786009,3341.1,3341.0,3.0]
[1642049878718,7.31786009,3341.1,3341.0,3.0]
[1642049879119,0.00565477,3341.0,3340.0,0.02989385]
[1642049879317,0.5457,3340.9,3340.0,0.02989385]
[1642049879516,0.3,3340.6,3340.1,0.00284212]
[1642049879722,0.5457,3340.5,3340.1,0.00284212]
[1642049880116,0.8457,3340.5,3340.1,0.00284212]
[1642049880319,1.59439,3340.5,3340.1,0.00284212]
[1642049880519,0.8457,3340.5,3340.2,1.53573366]
[1642049880924,0.8457,3340.5,3340.3,0.00170528]
[1642049881522,0.8457,3340.5,3340.3,3.00170528]
[1642049881968,0.8457,3340.5,3340.4,0.00113685]
[1642049882170,0.726,3340.5,3340.4,0.00113685]
[1642049883775,0.3,3340.5,3340.4,0.00113685]
[1642049884176,0.4197,3340.8,3340.4,0.00113685]
[1642049884377,0.15629351,3340.9,3340.4,0.00113685]
[1642049884577,2.25122228,3341.0,3340.4,0.00113685]
[1642049884976,0.00170527,3340.9,3340.4,0.00113685]
[1642049885378,0.00113684,3340.8,3340.4,0.00113685]
[1642049885810,1.49876377,3340.9,3340.4,0.00113685]
[1642049886013,1.53539943,3340.9,3340.4,0.00113685]
[1642049886211,0.00113684,3340.8,3340.4,0.00113685]
[1642049889361,0.74857,3340.7,3340.4,0.00113685]
[1642049889564,1.04857,3340.7,3340.4,0.00113685]
[1642049890162,0.1197,3340.6,3340.4,0.00113685]
[1642049891370,1.49722,3340.7,3340.4,0.00113685]
[1642049891672,0.1197,3340.6,3340.4,0.00113685]
[1642049893147,1.16827,3340.7,3340.4,0.00113685]
[1642049894846,0.4197,3340.7,3340.4,0.00113685]
[1642049895046,0.1197,3340.7,3340.4,0.00113685]
[1642049895847,1.6168697,3340.7,3340.4,0.00113685]
[1642049896047,0.3,3340.6,3340.4,0.00113685]
[1642049897361,2.56852195,3340.5,3340.4,0.00113685]
[1642049901347,2.56852195,3340.5,3338.8,0.66321454]
[1642049901348,6.75,3340.4,3338.8,0.66321454]
[1642049901522,0.01296121,3338.9,3338.8,0.66321454]
[1642049901720,8.21276121,3338.9,3338.8,0.66321454]
[1642049901922,10.42992323,3338.9,3338.8,0.66321454]
[1642049902124,8.72992323,3338.9,3338.8,0.66321454]
[1642049902523,11.00442958,3338.9,3338.8,0.66321454]
[1642049902723,10.00442958,3338.9,3338.8,0.66321454]
[1642049902925,2.8280784,3338.9,3338.7,1.40216715]
[1642049903125,2.8280784,3338.9,3338.8,0.1198]
[1642049903126,0.426,3338.9,3338.8,0.1198]
[1642049905071,0.726,3338.9,3338.8,0.1198]
[1642049905271,0.726,3338.9,3338.7,1.40216715]
[1642049905670,1.47496,3338.9,3338.7,1.40216715]
[1642049905871,4.23336466,3338.9,3338.7,1.40216715]
[1642049906069,1.51062994,3338.9,3338.7,1.40216715]
[1642049906472,4.30584361,3338.9,3338.7,1.40216715]
[1642049906671,5.6823756,3338.8,3338.7,1.40216715]
[1642049907071,5.6823756,3338.8,3338.7,1.41183035]
[1642049907676,3.11295101,3338.8,3338.7,1.41183035]
[1642049908122,6.24359296,3338.8,3338.7,1.41183035]
[1642049908321,6.99258296,3338.8,3338.7,1.41183035]
[1642049910323,4.16194101,3338.8,3338.7,1.41183035]
[1642049910522,1.36194101,3338.8,3338.7,1.41183035]
[1642049910721,0.61295101,3338.8,3338.7,1.41183035]
[1642049911123,0.31295101,3338.8,3338.7,1.41183035]
[1642049918523,4.86295101,3338.8,3338.7,1.41183035]
[1642049919369,0.61295101,3338.8,3338.7,1.41183035]
[1642049919772,3.1824943,3338.8,3338.7,1.41183035]
[1642049919973,3.3022943,3338.8,3338.7,1.41183035]
[1642049920376,3.0022943,3338.8,3338.7,1.41183035]
[1642049920576,3.3022943,3338.8,3338.7,1.41183035]
[1642049920975,3.1824943,3338.8,3338.7,1.41183035]
[1642049922577,2.8824943,3338.8,3338.7,1.41183035]
[1642049923423,0.31295101,3338.8,3338.7,1.41183035]
[1642049933130,2.88239173,3338.8,3338.7,1.41183035]
[1642049934029,0.31295101,3338.8,3338.7,1.41183035]
[1642049935669,2.8823767,3338.8,3338.7,1.41183035]
[1642049936271,0.31295101,3338.8,3338.7,1.41183035]
[1642049936673,0.61295101,3338.8,3338.7,1.41183035]
[1642049936872,0.31295101,3338.8,3338.7,1.41183035]
[1642049937074,0.31295101,3338.8,3338.7,1.40216715]
[1642049937273,2.8823767,3338.8,3338.7,1.40216715]
[1642049940324,3.0021767,3338.8,3338.7,1.40216715]
[1642049940527,3.0021767,3338.8,3338.7,1.43216715]
[1642049940727,6.12359122,3338.8,3338.7,1.43216715]
[1642049940929,6.15626959,3338.8,3338.7,1.43216715]
[1642049942781,3.3021767,3338.8,3338.7,1.43216715]
[1642049945285,3.0021767,3338.8,3338.7,1.43216715]
[1642049945926,2.8823767,3338.8,3338.7,1.43216715]
[1642049946128,3.1823767,3338.8,3338.7,1.43216715]
[1642049948937,2.8823767,3338.8,3338.7,1.43216715]
[1642049949666,3.1823767,3338.8,3338.7,1.43216715]
[1642049950568,3.1823767,3338.8,3338.7,0.03]
[1642049951767,2.8823767,3338.8,3338.7,0.03]
[1642049953018,3.1823767,3338.8,3338.7,0.03]
[1642049954028,6.75,3338.7,3337.6,10.3506]
[1642049954231,6.75,3338.7,3337.6,3.018]
[1642049954232,0.74912,3338.3,3337.6,3.018]
[1642049954431,1.29503,3338.2,3337.9,0.01421059]
[1642049954625,2.29503,3338.2,3337.9,0.01421059]
[1642049954825,3.37591879,3338.2,3337.9,0.01421059]
[1642049955026,3.3442389,3338.2,3337.9,0.01421059]
[1642049955226,3.37612703,3338.2,3337.9,0.01421059]
[1642049955627,4.87458703,3338.2,3338.1,1.2424584]
[1642049956026,4.87458703,3338.2,3338.1,1.25553214]
[1642049956228,7.73244986,3338.2,3338.1,1.25553214]
[1642049956427,7.7001547,3338.2,3338.1,1.25553214]
[1642049956783,2.62994605,3338.2,3338.1,1.25553214]
[1642049957773,5.45420695,3338.2,3338.1,0.01307374]
[1642049958378,6.23674012,3338.2,3338.1,0.01307374]
[1642049958578,3.41247922,3338.2,3338.1,0.01307374]
[1642049958781,2.66324922,3338.2,3338.1,0.01307374]
[1642049959079,1.62833317,3338.2,3338.1,0.01307374]
[1642049959282,0.78253317,3338.2,3338.1,0.01307374]
[1642049959679,0.78253317,3338.2,3337.8,0.01477901]
[1642049959880,0.78253317,3338.2,3338.1,1.23559952]
[1642049960184,4.35546678,3338.2,3338.1,1.24867326]
[1642049960385,4.35546678,3338.2,3338.1,0.01307374]
[1642049960625,5.65546678,3338.2,3338.1,0.01307374]
[1642049960921,5.65546678,3338.2,3338.0,0.01364216]
[1642049961125,6.06702792,3338.1,3338.0,0.01364216]
[1642049961322,3.29302792,3338.1,3338.0,0.01364216]
[1642049961522,4.04219792,3338.1,3338.0,0.01364216]
[1642049961826,4.04219792,3338.1,3338.0,1.33594644]
[1642049962522,5.46199792,3338.1,3338.0,1.33594644]
[1642049963127,5.46199792,3338.1,3338.0,0.01364216]
[1642049966375,4.16199792,3338.1,3338.0,0.01364216]
[1642049967176,4.04219792,3338.1,3338.0,0.01364216]
[1642049968620,1.17517,3338.1,3338.0,0.01364216]
[1642049968820,3.92879621,3338.1,3338.0,0.01364216]
[1642049969922,1.17517,3338.1,3338.0,0.01364216]
[1642049970122,4.20555499,3338.1,3338.0,0.01364216]
[1642049970324,1.47517,3338.1,3338.0,0.01364216]
[1642049970524,0.726,3338.1,3338.0,0.01364216]
[1642049971976,4.04495912,3338.1,3338.0,0.01364216]
[1642049972578,1.47512,3338.1,3338.0,0.01364216]
[1642049973079,0.726,3338.1,3338.0,0.01364216]
[1642049973281,2.99583912,3338.1,3338.0,0.01364216]
[1642049977228,2.56983912,3338.1,3338.0,0.01364216]
[1642049977623,2.56983912,3338.1,3338.0,2.67941656]
[1642049978630,0.03088824,3338.2,3338.0,2.67941656]
[1642049978929,0.1198,3338.7,3338.1,0.01307374]
[1642049980169,0.31295101,3338.8,3338.4,1.25278908]
[1642049980569,0.31295101,3338.8,3338.5,0.01080005]
[1642049980870,2.5695412,3338.6,3338.5,0.01080005]
[1642049981570,2.60426234,3338.7,3338.5,0.01080005]
[1642049981773,2.5695412,3338.7,3338.5,0.01080005]
[1642049982373,2.5695412,3338.6,3338.5,0.01080005]
[1642049985222,2.5695412,3338.6,3338.5,2.55727688]
[1642049985422,2.5695412,3338.6,3338.5,0.01080005]
[1642049988477,2.5695412,3338.6,3338.1,0.01307374]
[1642049989182,2.5695412,3338.6,3338.2,1.50545922]
[1642049989578,2.5695412,3338.6,3338.3,0.01193689]
[1642049991837,2.5695412,3338.6,3338.3,2.54355265]
[1642049992041,2.5695412,3338.6,3338.3,2.54143617]
[1642049992237,2.5695412,3338.6,3338.4,0.01136847]
[1642049992841,2.5695412,3338.6,3338.3,0.01193689]
[1642049993043,2.5695412,3338.6,3338.4,0.01136847]
[1642049993241,2.5695412,3338.6,3338.3,0.01193689]
[1642049994470,2.6893412,3338.6,3338.3,0.01193689]
[1642049994669,2.6893412,3338.6,3338.3,2.57124045]
[1642049994872,2.6893412,3338.6,3338.3,2.57072037]
[1642049995070,2.6893412,3338.6,3338.4,0.01136847]
[1642049995474,2.6893412,3338.6,3338.3,2.57365907]
[1642049995672,2.5695412,3338.5,3338.4,0.01136847]
[1642049996573,2.5695412,3338.5,3338.3,0.01193689]
[1642050000223,2.5695412,3338.5,3338.2,1.16273642]
[1642050006437,2.5695412,3338.5,3338.1,0.02553406]
[1642050009576,2.5695412,3338.5,3338.3,0.40566388]
[1642050010178,2.5695412,3338.5,3338.3,0.39109635]
[1642050014438,2.5695412,3338.5,3338.1,0.02553406]
[1642050014838,2.5695412,3338.5,3338.3,0.39109635]
[1642050017082,5.526,3338.4,3338.3,0.39109635]
[1642050017284,5.6458,3338.4,3338.3,0.39109635]
[1642050018184,0.5458,3338.4,3338.3,0.39109635]
[1642050018585,3.1153412,3338.4,3338.3,0.39109635]
[1642050019686,5.76168199,3338.4,3338.3,0.39109635]
[1642050020287,3.1153412,3338.4,3338.3,0.39109635]
[1642050020930,5.7766953,3338.4,3338.3,0.39109635]
[1642050022831,3.1153412,3338.4,3338.3,0.39109635]
[1642050023032,4.61225229,3338.4,3338.3,0.39109635]
[1642050023436,4.95808273,3338.4,3338.3,0.39109635]
[1642050023838,3.46117164,3338.4,3338.3,0.39109635]
[1642050024041,3.34137164,3338.4,3338.3,0.39109635]
[1642050025987,2.91537164,3338.4,3338.3,0.39109635]
[1642050033075,2.91537164,3338.4,3338.3,0.51089635]
[1642050037136,2.91537164,3338.4,3338.3,0.39109635]
[1642050063890,2.91537164,3338.4,3338.3,0.38916352]
[1642050064091,2.91537164,3338.4,3338.3,0.20283194]
[1642050064292,2.91537164,3338.4,3338.3,0.38916352]
[1642050068441,2.5695412,3338.4,3338.3,0.38916352]
[1642050069885,2.5695412,3338.8,3338.6,1.20026]
[1642050070086,2.5695412,3338.8,3338.6,1.94902]
[1642050070294,2.57238331,3338.8,3338.6,1.94902]
[1642050070486,0.00284211,3338.8,3338.7,0.38916352]
[1642050072795,0.00284211,3338.8,3338.7,5.23916352]
[1642050073040,0.00284211,3338.8,3338.7,6.23916352]
[1642050074036,0.00284211,3338.8,3338.7,0.38916352]
[1642050082636,0.00284211,3338.8,3338.7,17.90916352]
[1642050083842,0.00284211,3338.8,3338.7,18.20916352]
[1642050084484,0.00284211,3338.8,3338.7,0.68916352]
[1642050084890,0.00284211,3338.8,3338.7,0.38916352]
[1642050085093,0.00284211,3338.8,3338.7,17.90916352]
[1642050085492,0.00284211,3338.8,3338.7,0.38916352]
[1642050086092,0.00284211,3338.8,3338.7,0.50896352]
[1642050086291,0.00284211,3338.8,3338.7,18.02896352]
[1642050086491,0.00284211,3338.8,3338.7,0.50896352]
[1642050087291,0.00284211,3338.8,3338.7,18.02896352]
[1642050087494,0.00284211,3338.8,3338.7,0.50896352]
[1642050088542,0.00284211,3338.8,3338.7,20.47896352]
[1642050089940,0.00284211,3338.8,3338.7,18.02896352]
[1642050093591,0.00284211,3338.8,3338.7,19.02896352]
[1642050096440,0.00284211,3338.8,3338.7,18.02896352]
[1642050096740,0.00284211,3338.8,3338.7,19.02896352]
[1642050098645,0.00284211,3338.8,3338.7,19.77753352]
[1642050100894,2.56888881,3339.7,3338.8,0.7485734]
[1642050101099,2.56888881,3339.7,3339.5,1.4339458]
[1642050101299,2.56888881,3339.7,3339.6,1.27802493]
[1642050101499,2.56888881,3339.7,3339.6,1.46435651]
[1642050101698,2.57684673,3339.7,3339.6,1.66718845]
[1642050105945,7.73519768,3340.8,3339.8,6.75]
[1642050106146,1.32014859,3340.5,3340.1,0.01325476]
[1642050106346,3.85596909,3340.7,3340.1,0.01325476]
[1642050106347,3.85596909,3340.7,3340.4,0.01266452]
[1642050106793,0.00511582,3340.6,3340.5,0.1197]
[1642050106992,0.00511582,3340.6,3340.5,17.9397]
[1642050107191,0.00511582,3340.6,3340.5,20.11175964]
[1642050107392,0.00511582,3340.6,3340.5,2.03989964]
[1642050107598,0.00511582,3340.6,3340.4,1.13886158]
[1642050107791,0.00511582,3340.6,3340.4,0.93446158]
[1642050107995,0.00454739,3340.5,3340.4,0.93446158]
[1642050108196,0.00454739,3340.5,3340.4,0.18633158]
[1642050108796,0.00454739,3340.5,3340.4,2.68910465]
[1642050109399,0.00454739,3340.5,3340.4,21.20910465]
[1642050109596,0.00454739,3340.5,3340.4,21.50910465]
[1642050109796,0.00454739,3340.5,3340.4,20.50910465]
[1642050110197,0.00454739,3340.5,3340.4,4.27057394]
[1642050110555,0.00454739,3340.5,3340.4,22.79057394]
[1642050110746,0.00454739,3340.5,3340.4,5.27057394]
[1642050110946,0.00454739,3340.5,3340.4,4.27057394]
[1642050111146,0.00454739,3340.5,3340.4,3.97057394]
[1642050111547,0.00454739,3340.5,3340.4,5.27057394]
[1642050111847,0.00454739,3340.5,3340.4,2.88750087]
[1642050112448,0.00454739,3340.5,3340.4,3.09033281]
[1642050112646,0.00454739,3340.5,3340.4,1.79033281]
[1642050113046,0.00454739,3340.5,3340.4,5.7014226]
[1642050113248,0.00454739,3340.5,3340.4,23.2214226]
[1642050114494,0.00454739,3340.5,3340.4,24.7178126]
[1642050117697,0.00454739,3340.5,3340.4,27.7178126]
[1642050118945,0.00454739,3340.5,3340.4,10.1978126]
[1642050119143,0.00454739,3340.5,3340.4,8.7014226]
[1642050119750,0.00454739,3340.5,3340.4,26.2214226]
[1642050120347,0.00454739,3340.5,3340.4,26.9696226]
[1642050124289,0.00454739,3340.5,3340.4,27.2696226]
[1642050130200,3.7249,3341.7,3341.1,0.7481]
[1642050130502,0.00625266,3341.6,3341.3,0.6733]
[1642050130697,0.00625266,3341.6,3341.5,1.19928123]
[1642050130900,1.50322639,3341.9,3341.5,1.19928123]
[1642050131299,0.00738951,3341.8,3341.5,1.19928123]
[1642050131499,0.00738951,3341.8,3341.6,18.26799]
[1642050131698,1.50322639,3342.1,3341.6,19.47469]
[1642050131699,0.00682108,3341.7,3341.6,19.47469]
[1642050132098,0.00682108,3341.7,3341.6,1.95469]
[1642050132398,0.00682108,3341.7,3341.6,1.2067]
[1642050132597,0.00682108,3341.7,3341.5,2.59856123]
[1642050133035,0.00625266,3341.6,3341.5,2.59856123]
[1642050133637,0.00625266,3341.6,3341.5,5.12716309]
[1642050133838,0.00625266,3341.6,3341.5,2.59856123]
[1642050134439,0.00625266,3341.6,3341.5,20.86653123]
[1642050136040,0.00625266,3341.6,3341.5,21.25569475]
[1642050136642,0.00625266,3341.6,3341.5,22.25569475]
[1642050137091,3.58635266,3342.6,3341.5,25.25569475]
[1642050137295,3.58635266,3342.6,3341.9,1.4958376]
[1642050137491,0.00511581,3342.5,3342.0,0.89835]
[1642050137691,0.00511581,3342.5,3342.0,0.59835]
[1642050137897,0.00454739,3342.4,3342.1,0.3]
[1642050138295,0.00397896,3342.3,3342.2,1.29134705]
[1642050138497,0.00397896,3342.3,3342.2,3.2706837]
[1642050138696,0.00397896,3342.3,3342.2,2.6723437]
[1642050139300,2.57076402,3342.3,3342.2,2.6723437]
[1642050139897,2.57076402,3342.3,3342.2,2.9723437]
[1642050140198,2.57076402,3342.3,3342.2,2.6723437]
[1642050141242,2.57076402,3342.3,3342.2,2.85867528]
[1642050141441,2.57076402,3342.3,3342.2,3.06150722]
[1642050142442,2.57076402,3342.3,3342.2,3.36150722]
[1642050145493,2.57076402,3342.3,3342.2,6.13452134]
[1642050145697,2.57076402,3342.3,3342.2,7.91482134]
[1642050145893,2.57076402,3342.3,3342.2,8.91482134]
[1642050146293,0.00397896,3342.3,3342.2,8.91482134]
[1642050146894,0.00397896,3342.3,3342.2,12.39082134]
[1642050147095,1.62301139,3343.4,3342.4,19.0154229]
[1642050147295,1.62301139,3343.4,3342.8,0.74772]
[1642050147494,0.00568424,3343.3,3342.9,2.66956726]
[1642050147695,0.00568424,3343.3,3343.1,0.18633158]
[1642050147894,1.62301139,3343.4,3343.2,1.72603745]
[1642050148152,1.62301139,3343.4,3343.2,0.20283194]
[1642050148354,2.57183477,3343.3,3343.2,0.20283194]
[1642050150753,5.67183477,3343.3,3343.2,0.20283194]
[1642050150957,2.57183477,3343.3,3343.2,0.20283194]
[1642050151557,4.07506116,3343.3,3343.2,0.20283194]
[1642050151816,4.07506116,3343.3,3343.1,0.18633158]
[1642050151817,4.07506116,3343.3,3342.8,1.20543591]
[1642050152015,4.07506116,3343.3,3342.4,0.1196]
[1642050152215,0.00511582,3343.2,3342.4,0.1196]
[1642050152518,0.00454739,3343.1,3342.4,0.1196]
[1642050152716,0.00454739,3343.1,3342.2,1.50059665]
[1642050152916,0.00397897,3343.0,3342.2,1.50059665]
[1642050153116,2.5701295,3343.0,3342.2,1.50059665]
[1642050153316,2.54402701,3343.0,3342.3,5.87352]
[1642050153518,2.54402701,3343.0,3342.3,5.87693054]
[1642050153716,2.54402701,3343.0,3342.3,0.52693054]
[1642050153917,0.1507482,3343.4,3342.4,1.31886946]
[1642050154119,1.50322639,3343.5,3342.5,0.3]
[1642050154318,0.0022737,3343.3,3342.6,0.1196]
[1642050154519,0.0022737,3343.3,3342.6,0.12130527]
[1642050154719,0.00170528,3343.2,3342.7,0.00113684]
[1642050155018,0.00113685,3343.1,3342.7,0.00113684]
[1642050155420,0.00284212,3343.4,3342.7,0.00113684]
[1642050155838,0.12244212,3343.4,3343.3,1.48516443]
[1642050156243,0.00284212,3343.4,3343.3,1.48516443]
[1642050158745,0.00284212,3343.4,3343.3,4.48516443]
[1642050176798,1.50606851,3343.4,3343.3,4.48516443]
[1642050178257,4.07232469,3343.4,3343.3,4.48516443]
[1642050179559,2.5690983,3343.4,3343.3,4.48516443]
[1642050180361,0.00284212,3343.4,3343.3,4.48516443]
[1642050181560,1.52038653,3343.4,3343.3,4.48516443]
[1642050184013,1.52038653,3343.4,3343.3,4.78516443]
[1642050185214,1.52038653,3343.4,3343.3,4.48516443]
[1642050185642,2.5690983,3343.4,3343.3,4.48516443]
[1642050186142,2.56625618,3343.4,3343.3,4.48516443]
[1642050186544,1.51754441,3343.4,3343.3,4.48516443]
[1642050188550,0.03526695,3343.5,3343.3,4.48516443]
[1642050188750,2.56625618,3343.4,3343.3,4.48516443]
[1642050192403,4.82186185,3343.4,3343.3,4.48516443]
[1642050193145,4.82186185,3343.6,3343.3,4.48516443]
[1642050193345,4.82186185,3343.6,3343.5,1.53826474]
[1642050193946,2.98831409,3343.7,3343.5,1.53826474]
[1642050194347,3.75703779,3344.2,3343.6,27.15837462]
[1642050194549,3.75703779,3344.2,3343.8,0.52319]
[1642050194747,3.75703779,3344.2,3343.9,0.1196]
[1642050194952,0.239349,3344.3,3343.9,0.1196]
[1642050195351,0.00284212,3344.2,3343.9,0.1196]
[1642050195747,0.0022737,3344.1,3343.9,0.1196]
[1642050195949,0.0022737,3344.1,3344.0,17.52]
[1642050196151,0.1196,3344.3,3344.0,17.52]
[1642050196349,0.1196,3344.3,3344.1,0.82319]
[1642050196550,0.1196,3344.3,3344.1,0.3]
[1642050196551,0.00284212,3344.2,3344.1,0.3]
[1642050196795,0.00284212,3344.2,3343.9,0.4196]
[1642050196994,0.00284212,3344.2,3343.9,0.1196]
[1642050197196,0.0022737,3344.1,3343.9,0.1196]
[1642050197601,0.00170527,3344.0,3343.9,0.1196]
[1642050199299,0.00170527,3344.0,3343.8,0.1196]
[1642050199701,0.00113685,3343.9,3343.8,0.1196]
[1642050201252,3.40113685,3343.9,3343.8,0.1196]
[1642050201454,3.40113685,3343.9,3343.1,0.01281295]
[1642050201643,3.52073685,3343.9,3343.1,0.01281295]
[1642050201843,3.52073685,3343.9,3343.4,0.00170527]
[1642050202442,0.12073685,3343.9,3343.4,0.00170527]
[1642050202845,0.00113685,3343.9,3343.4,0.00170527]
[1642050203447,2.99282974,3343.9,3343.4,0.00170527]
[1642050203647,0.12073685,3343.9,3343.4,0.00170527]
[1642050203847,0.00113685,3343.9,3343.4,0.00170527]
[1642050204392,0.00113685,3343.9,3343.4,1.33815119]
[1642050204792,0.00113685,3343.9,3343.5,0.00113684]
[1642050217347,0.00113685,3343.9,3343.6,0.1196]
[1642050219049,0.00113685,3343.9,3343.5,0.00113684]
[1642050223951,0.00113685,3343.9,3343.5,0.12073684]
[1642050228900,0.00113685,3343.9,3343.5,0.00113684]
[1642050229996,2.7104659,3344.0,3343.5,0.00113684]
[1642050230194,4.87062688,3344.1,3343.5,0.00113684]
[1642050230395,0.00170527,3344.0,3343.5,0.00113684]
[1642050230953,0.00113685,3343.9,3343.5,0.00113684]
[1642050233655,0.01238434,3343.6,3341.6,0.1196]
[1642050233857,0.01238434,3343.6,3340.4,17.52]
[1642050233858,0.01204785,3342.1,3340.4,17.52]
[1642050234060,0.01204785,3342.1,3340.3,4.45979503]
[1642050234061,0.55305968,3342.0,3341.2,0.01307374]
[1642050234298,2.78477372,3341.9,3341.2,0.01307374]
[1642050234498,0.1197,3341.8,3340.4,0.01762113]
[1642050234698,0.01202951,3341.3,3341.1,1.39695727]
[1642050234899,0.49426359,3341.8,3341.1,1.39695727]
[1642050234900,0.5457,3341.2,3341.1,1.39695727]
[1642050235099,5.329,3341.4,3341.1,1.39695727]
[1642050235298,0.426,3341.3,3341.1,1.41059944]
[1642050235700,0.426,3341.3,3341.2,1.4887329]
[1642050236712,0.1197,3341.7,3341.2,1.4887329]
[1642050236713,0.27421172,3341.6,3341.3,6.75]
[1642050236908,0.31248162,3342.7,3341.4,20.30477372]
[1642050237105,0.31248162,3342.7,3341.5,1.1807]
[1642050237306,0.43208162,3342.7,3342.5,1.32895887]
[1642050237507,0.43208162,3342.7,3341.8,2.78477372]
[1642050237706,0.43208162,3342.7,3342.6,0.00511582]
[1642050237908,0.31248162,3342.7,3341.9,0.00909478]
[1642050238173,0.31248162,3342.7,3341.8,0.1292632]
[1642050238573,0.31248162,3342.7,3341.9,0.00909478]
[1642050238974,2.56667034,3342.6,3341.9,0.00909478]
[1642050239174,2.56667034,3342.6,3342.0,1.23029099]
[1642050239574,2.56667034,3342.6,3342.1,3.02964733]
[1642050239772,2.56667034,3342.6,3342.1,3.14924733]
[1642050239974,2.56667034,3342.6,3342.2,0.00738951]
[1642050240578,2.56667034,3342.9,3342.2,0.00738951]
[1642050240775,2.56667034,3342.9,3342.8,1.36076822]
[1642050241176,2.56667034,3342.9,3342.8,1.36474719]
[1642050242400,2.56667034,3342.9,3342.8,4.2133911]
[1642050242598,2.56667034,3342.9,3342.8,1.36474719]
[1642050243400,2.56667034,3343.1,3342.8,1.36474719]
[1642050243799,2.56667034,3343.1,3342.9,0.00341055]
[1642050244800,2.56667034,3343.1,3343.0,1.37818914]
[1642050245201,4.07394783,3343.5,3343.0,1.38103126]
[1642050245647,4.07394783,3343.5,3343.1,0.0022737]
[1642050247049,4.19354783,3343.5,3343.1,0.0022737]
[1642050247254,1.50727749,3343.4,3343.1,0.0022737]
[1642050248052,2.56667034,3343.4,3343.1,0.0022737]
[1642050249905,2.56667034,3343.4,3343.1,3.0022737]
[1642050250106,2.56667034,3343.4,3343.2,0.01270925]
[1642050250306,2.56667034,3343.4,3343.2,0.01441452]
[1642050250505,2.56667034,3343.4,3343.3,0.00113685]
[1642050251105,2.56667034,3343.4,3343.2,0.00170527]
[1642050253867,0.00170527,3343.8,3343.2,2.87178797]
[1642050254264,0.00113684,3343.7,3343.3,0.00113685]
[1642050254661,0.00170527,3343.8,3343.3,0.00113685]
[1642050254861,0.00170527,3343.8,3343.4,1.21565026]
[1642050255061,2.56667034,3343.9,3343.4,1.21565026]
[1642050255062,0.00113684,3343.7,3343.4,1.21565026]
[1642050255466,0.00170527,3343.8,3343.3,0.00113685]
[1642050255664,0.1196,3343.7,3343.3,0.00113685]
[1642050255862,0.12073684,3343.7,3343.3,0.00113685]
[1642050256163,0.00113684,3343.7,3343.2,0.00170527]
[1642050256362,0.5456,3343.6,3343.2,0.00170527]
[1642050257413,1.50727749,3343.5,3343.2,0.00170527]
[1642050257611,0.1196,3343.4,3343.2,0.00170527]
[1642050257813,0.1196,3343.4,3343.3,1.1264283]
[1642050258211,0.1196,3343.4,3343.3,1.12756515]
[1642050259415,2.68627034,3343.4,3343.3,1.12756515]
[1642050259615,2.56667034,3343.4,3343.3,1.12756515]
[1642050261251,2.56667034,3343.4,3343.2,1.48256218]
[1642050263950,6.026,3343.3,3343.2,1.48256218]
[1642050264600,2.726,3343.3,3343.2,1.48256218]
[1642050265305,6.79994783,3343.3,3343.2,1.48256218]
[1642050267806,6.79994783,3343.3,3342.4,1.40198373]
[1642050267807,6.948,3343.2,3342.4,0.00642951]
[1642050268071,0.74799,3342.7,3342.4,0.00642951]
[1642050268265,0.74799,3342.7,3342.5,0.00454739]
[1642050268462,0.74799,3342.7,3342.5,1.11281394]
[1642050268863,0.74799,3342.7,3342.6,0.00397897]
[1642050269465,1.49598,3343.0,3342.6,0.00397897]
[1642050269665,0.7479435,3343.0,3342.6,0.00397897]
[1642050269867,0.78731337,3343.0,3342.6,0.00397897]
[1642050273708,0.74791,3342.9,3342.6,0.00397897]
[1642050273907,0.77982088,3342.9,3342.6,0.00397897]
[1642050275409,0.7479435,3343.0,3342.6,0.00397897]
[1642050275649,0.78392981,3343.0,3342.6,0.00397897]
[1642050277247,1.53179981,3343.0,3342.6,0.00397897]
[1642050280708,2.27973981,3343.0,3342.6,0.00397897]
[1642050280908,0.00730194,3342.9,3342.6,0.00397897]
[1642050281309,2.27973981,3343.0,3342.6,0.00397897]
[1642050281911,1.50904917,3342.8,3342.6,0.00397897]
[1642050283159,2.25696467,3342.8,3342.6,0.00397897]
[1642050283557,1.50904917,3342.7,3342.6,0.00397897]
[1642050284958,4.07560651,3342.7,3342.6,0.00397897]
[1642050285359,1.50904917,3342.7,3342.6,0.00397897]
[1642050285959,4.07560651,3342.7,3342.6,0.00397897]
[1642050286994,2.56655734,3342.7,3342.6,0.00397897]
[1642050297115,5.31655734,3342.7,3342.6,0.00397897]
[1642050297513,2.56655734,3342.7,3342.6,0.00397897]
[1642050298153,2.68615734,3342.7,3342.6,0.00397897]